[Event "20th Rochefort Chess Festival - Masters"]
[Site "Rochefort, France"]
[Date "2022.02.18"]
[Round "9.1"]
[White "Fecker, Noah"]
[Black "Demuth, Adrien"]
[Result "1/2-1/2"]
[TimeControl "1h30 + [30'']"]
[WhiteElo "2328"]
[BlackElo "2489"]

1. e4 {[%clk 01:29:13]} {[%emt 00:01:46]} e5 {[%clk 01:30:46]} {[%emt
00:00:14]} 2. Nf3 {[%clk 01:29:33]} {[%emt 00:00:10]} Nc6 {[%clk 01:31:11]}
{[%emt 00:00:05]} 3. Bb5 {[%clk 01:29:59]} {[%emt 00:00:04]} a6 {[%clk
01:31:37]} {[%emt 00:00:05]} 4. Ba4 {[%clk 01:30:24]} {[%emt 00:00:05]} d6
{[%clk 01:32:02]} {[%emt 00:00:05]} 5. O-O {[%clk 01:28:50]} {[%emt 00:02:03]}
Bg4 {[%clk 01:32:14]} {[%emt 00:00:18]} 6. h3 {[%clk 01:25:22]} {[%emt
00:03:58]} h5 {[%clk 01:32:30]} {[%emt 00:00:14]} 7. Bxc6+ {[%clk 01:25:18]}
{[%emt 00:00:35]} bxc6 {[%clk 01:32:55]} {[%emt 00:00:05]} 8. d4 {[%clk
01:25:36]} {[%emt 00:00:11]} Bxf3 {[%clk 01:33:10]} {[%emt 00:00:15]} 9. Qxf3
{[%clk 01:26:01]} {[%emt 00:00:05]} exd4 {[%clk 01:33:14]} {[%emt 00:00:26]} 10.
Rd1 {[%clk 01:21:49]} {[%emt 00:04:42]} Qf6 {[%clk 01:32:10]} {[%emt 00:01:34]}
11. Qb3 {[%clk 01:18:00]} {[%emt 00:04:19]} Ne7 {[%clk 01:32:09]} {[%emt
00:00:31]} 12. Qb7 {[%clk 01:13:54]} {[%emt 00:04:35]} Rd8 {[%clk 01:32:27]}
{[%emt 00:00:12]} 13. Qxa6 {[%clk 00:59:34]} {[%emt 00:14:50]} g5 {[%clk
01:31:56]} {[%emt 00:01:02]} 14. Qd3 {[%clk 00:54:14]} {[%emt 00:05:49]} Bg7
{[%clk 01:12:43]} {[%emt 00:19:43]} 15. c3 {[%clk 00:48:29]} {[%emt 00:06:16]}
d5 {[%clk 00:46:51]} {[%emt 00:26:22]} 16. exd5 {[%clk 00:40:46]} {[%emt
00:08:12]} Rxd5 {[%clk 00:41:19]} {[%emt 00:06:02]} 17. cxd4 {[%clk 00:40:19]}
{[%emt 00:00:58]} Rxd4 {[%clk 00:33:53]} {[%emt 00:07:56]} 18. Qxd4 {[%clk
00:38:02]} {[%emt 00:02:46]} Qxd4 {[%clk 00:33:59]} {[%emt 00:00:24]} 19. Rxd4
{[%clk 00:38:30]} {[%emt 00:00:01]} Bxd4 {[%clk 00:34:25]} {[%emt 00:00:05]} 20.
Nc3 {[%clk 00:37:09]} {[%emt 00:01:51]} Nd5 {[%clk 00:17:08]} {[%emt 00:17:47]}
21. Bxg5 {[%clk 00:35:17]} {[%emt 00:02:22]} Nxc3 {[%clk 00:16:04]} {[%emt
00:01:34]} 22. bxc3 {[%clk 00:31:00]} {[%emt 00:04:47]} Bxc3 {[%clk 00:16:16]}
{[%emt 00:00:18]} 23. Rc1 {[%clk 00:29:33]} {[%emt 00:01:57]} Bd4 {[%clk
00:15:29]} {[%emt 00:01:17]} 24. Rxc6 {[%clk 00:26:04]} {[%emt 00:03:59]} Kd7
{[%clk 00:15:45]} {[%emt 00:00:15]} 25. Rc2 {[%clk 00:26:06]} {[%emt 00:00:28]}
c5 {[%clk 00:15:56]} {[%emt 00:00:18]} 26. Kf1 {[%clk 00:25:54]} {[%emt
00:00:42]} Kc6 {[%clk 00:12:51]} {[%emt 00:03:36]} 27. Be3 {[%clk 00:21:43]}
{[%emt 00:04:41]} Kd5 {[%clk 00:05:37]} {[%emt 00:07:44]} 28. Ke2 {[%clk
00:20:40]} {[%emt 00:01:32]} Ra8 {[%clk 00:05:55]} {[%emt 00:00:12]} 29. g4
{[%clk 00:14:49]} {[%emt 00:06:21]} hxg4 {[%clk 00:05:30]} {[%emt 00:00:55]} 30.
hxg4 {[%clk 00:14:54]} {[%emt 00:00:25]} Bxe3 {[%clk 00:04:14]} {[%emt
00:01:45]} 31. fxe3 {[%clk 00:13:40]} {[%emt 00:01:44]} Ke5 {[%emt 00:00:40]}
1/2-1/2

[Event "20th Rochefort Chess Festival - Masters"]
[Site "Rochefort, France"]
[Date "2022.02.18"]
[Round "9.5"]
[White "Dudognon, Thibault"]
[Black "Larkin, Vladyslav"]
[Result "0-1"]
[TimeControl "1h30 + [30'']"]
[WhiteElo "2294"]
[BlackElo "2399"]

1. e4 {[%clk 01:29:57]} {[%emt 00:01:02]} c5 {[%clk 01:10:10]} {[%emt
00:20:50]} 2. Nc3 {[%clk 01:30:18]} {[%emt 00:00:08]} a6 {[%clk 01:10:08]}
{[%emt 00:00:33]} 3. Nge2 {[%clk 01:30:30]} {[%emt 00:00:17]} e6 {[%clk
01:10:20]} {[%emt 00:00:19]} 4. g3 {[%clk 01:30:21]} {[%emt 00:00:38]} h5
{[%clk 01:07:14]} {[%emt 00:03:35]} 5. h3 {[%clk 01:24:28]} {[%emt 00:06:23]}
b5 {[%clk 01:03:53]} {[%emt 00:03:52]} 6. Bg2 {[%clk 01:20:58]} {[%emt
00:04:00]} Bb7 {[%clk 01:04:19]} {[%emt 00:00:05]} 7. d4 {[%clk 01:18:32]}
{[%emt 00:02:55]} b4 {[%clk 01:04:15]} {[%emt 00:00:34]} 8. Nb1 {[%clk
01:17:50]} {[%emt 00:01:12]} cxd4 {[%clk 01:04:28]} {[%emt 00:00:18]} 9. Nxd4
{[%clk 01:17:27]} {[%emt 00:00:53]} Nf6 {[%clk 01:04:48]} {[%emt 00:00:10]} 10.
Nd2 {[%clk 01:12:33]} {[%emt 00:05:23]} Qc7 {[%clk 01:04:31]} {[%emt 00:00:47]}
11. O-O {[%clk 01:10:10]} {[%emt 00:02:53]} Bc5 {[%clk 00:56:22]} {[%emt
00:08:40]} 12. N2b3 {[%clk 01:05:15]} {[%emt 00:05:25]} Bxe4 {[%clk 00:49:02]}
{[%emt 00:07:49]} 13. Bxe4 {[%clk 01:05:26]} {[%emt 00:00:19]} Nxe4 {[%clk
00:49:27]} {[%emt 00:00:05]} 14. Qf3 {[%clk 01:05:41]} {[%emt 00:00:14]} d5
{[%clk 00:49:17]} {[%emt 00:00:40]} 15. Nxc5 {[%clk 01:05:51]} {[%emt
00:00:20]} Qxc5 {[%clk 00:49:32]} {[%emt 00:00:15]} 16. Be3 {[%clk 01:01:54]}
{[%emt 00:04:27]} Qc7 {[%clk 00:45:38]} {[%emt 00:04:24]} 17. Rfc1 {[%clk
00:53:53]} {[%emt 00:08:31]} h4 {[%clk 00:45:30]} {[%emt 00:00:38]} 18. Qg4
{[%clk 00:47:42]} {[%emt 00:06:41]} hxg3 {[%clk 00:38:48]} {[%emt 00:07:13]} 19.
Qxg7 {[%clk 00:47:52]} {[%emt 00:00:20]} gxf2+ {[%clk 00:39:14]} {[%emt
00:00:04]} 20. Kg2 {[%clk 00:48:05]} {[%emt 00:00:17]} Rh7 {[%clk 00:38:40]}
{[%emt 00:01:04]} 21. Qg8+ {[%clk 00:34:06]} {[%emt 00:14:28]} Ke7 {[%clk
00:38:40]} {[%emt 00:00:30]} 22. Bxf2 {[%clk 00:13:48]} {[%emt 00:20:49]} Rh6
{[%clk 00:35:35]} {[%emt 00:03:36]} 23. Bg3 {[%clk 00:07:58]} {[%emt 00:06:20]}
Nxg3 {[%clk 00:34:25]} {[%emt 00:01:40]} 24. Qg5+ {[%clk 00:06:36]} {[%emt
00:01:52]} Rf6 {[%clk 00:34:50]} {[%emt 00:00:05]} 25. c3 {[%clk 00:04:39]}
{[%emt 00:02:27]} Ne4 {[%clk 00:32:50]} {[%emt 00:02:30]} 26. cxb4 {[%clk
00:04:53]} {[%emt 00:00:17]} Nxg5 {[%clk 00:30:39]} {[%emt 00:02:40]} 27. Rxc7+
{[%clk 00:05:21]} {[%emt 00:00:02]} Nd7 {[%clk 00:31:03]} {[%emt 00:00:06]} 28.
Rac1 {[%clk 00:03:13]} {[%emt 00:02:37]} Ne4 {[%clk 00:29:36]} {[%emt
00:01:57]} 29. Rc8 {[%clk 00:02:51]} {[%emt 00:00:52]} Rf2+ {[%clk 00:29:51]}
{[%emt 00:00:15]} 30. Kg1 {[%clk 00:03:16]} {[%emt 00:00:05]} Rxc8 {[%clk
00:30:17]} {[%emt 00:00:04]} 31. Rxc8 {[%clk 00:03:42]} {[%emt 00:00:03]} Rxb2
{[%clk 00:30:34]} {[%emt 00:00:14]} 32. a4 {[%clk 00:04:04]} {[%emt 00:00:08]}
Kf6 {[%clk 00:30:48]} {[%emt 00:00:16]} 33. b5 {[%clk 00:04:11]} {[%emt
00:00:23]} axb5 {[%clk 00:31:14]} {[%emt 00:00:04]} 34. axb5 {[%clk 00:04:36]}
{[%emt 00:00:05]} Rb4 {[%clk 00:31:28]} {[%emt 00:00:16]} 35. Nf3 {[%clk
00:04:44]} {[%emt 00:00:21]} Rb1+ {[%clk 00:31:51]} {[%emt 00:00:07]} 36. Kg2
{[%clk 00:05:02]} {[%emt 00:00:11]} Rxb5 {[%clk 00:32:17]} {[%emt 00:00:05]} 37.
h4 {[%clk 00:05:23]} {[%emt 00:00:08]} Ne5 {[%clk 00:30:47]} {[%emt 00:02:00]}
0-1

[Event "20th Rochefort Chess Festival - Masters"]
[Site "Rochefort, France"]
[Date "2022.02.18"]
[Round "9.3"]
[White "Bauer, Christian"]
[Black "Laurent-Paoli, Pierre"]
[Result "1-0"]
[TimeControl "1h30 + [30'']"]
[WhiteElo "2613"]
[BlackElo "2483"]

1. e4 {[%clk 01:30:54]} {[%emt 00:00:05]} c6 {[%clk 01:30:26]} {[%emt
00:00:34]} 2. d4 {[%clk 01:31:13]} {[%emt 00:00:11]} d5 {[%clk 01:30:51]}
{[%emt 00:00:05]} 3. e5 {[%clk 01:31:40]} {[%emt 00:00:04]} Bf5 {[%clk
01:30:20]} {[%emt 00:01:00]} 4. h4 {[%clk 01:31:53]} {[%emt 00:00:17]} h5
{[%clk 01:25:55]} {[%emt 00:04:55]} 5. Bd3 {[%clk 01:32:14]} {[%emt 00:00:09]}
Bxd3 {[%clk 01:25:57]} {[%emt 00:00:27]} 6. Qxd3 {[%clk 01:32:43]} {[%emt
00:00:02]} Qa5+ {[%clk 01:26:16]} {[%emt 00:00:11]} 7. Nc3 {[%clk 01:28:47]}
{[%emt 00:04:26]} e6 {[%clk 01:22:45]} {[%emt 00:04:01]} 8. Bg5 {[%clk
01:29:12]} {[%emt 00:00:05]} Qa6 {[%clk 01:11:43]} {[%emt 00:11:32]} 9. Qh3
{[%clk 01:29:40]} {[%emt 00:00:01]} Ne7 {[%clk 00:57:48]} {[%emt 00:14:25]} 10.
Nge2 {[%clk 01:27:36]} {[%emt 00:02:35]} Nd7 {[%clk 00:56:17]} {[%emt
00:02:01]} 11. O-O {[%clk 01:20:39]} {[%emt 00:07:26]} Nf5 {[%clk 00:54:25]}
{[%emt 00:02:22]} 12. Rad1 {[%clk 01:16:52]} {[%emt 00:04:17]} Be7 {[%clk
00:50:03]} {[%emt 00:04:52]} 13. Ng3 {[%clk 01:11:53]} {[%emt 00:05:30]} g6
{[%clk 00:47:27]} {[%emt 00:03:05]} 14. Nxf5 {[%clk 01:08:48]} {[%emt
00:03:35]} gxf5 {[%clk 00:47:55]} {[%emt 00:00:02]} 15. Qe3 {[%clk 01:08:20]}
{[%emt 00:00:58]} Bxg5 {[%clk 00:44:51]} {[%emt 00:03:34]} 16. Qxg5 {[%clk
01:08:28]} {[%emt 00:00:22]} Qb6 {[%clk 00:44:09]} {[%emt 00:01:12]} 17. Ne2
{[%clk 00:51:20]} {[%emt 00:17:38]} Qb4 {[%clk 00:31:56]} {[%emt 00:12:42]} 18.
Rd3 {[%clk 00:27:55]} {[%emt 00:23:55]} Qe7 {[%clk 00:31:37]} {[%emt 00:00:48]}
19. Rg3 {[%clk 00:27:47]} {[%emt 00:00:39]} Qxg5 {[%clk 00:30:57]} {[%emt
00:01:10]} 20. Rxg5 {[%clk 00:28:16]} {[%emt 00:00:01]} Ke7 {[%clk 00:29:55]}
{[%emt 00:01:32]} 21. Nf4 {[%clk 00:28:42]} {[%emt 00:00:04]} Rag8 {[%clk
00:29:21]} {[%emt 00:01:04]} 22. Rxg8 {[%clk 00:28:40]} {[%emt 00:00:32]} Rxg8
{[%clk 00:29:46]} {[%emt 00:00:05]} 23. g3 {[%clk 00:14:19]} {[%emt 00:14:50]}
Rh8 {[%clk 00:24:42]} {[%emt 00:05:35]} 24. Kg2 {[%clk 00:11:39]} {[%emt
00:03:10]} c5 {[%clk 00:23:21]} {[%emt 00:01:52]} 25. c3 {[%clk 00:11:41]}
{[%emt 00:00:28]} b5 {[%clk 00:22:12]} {[%emt 00:01:38]} 26. Kf3 {[%clk
00:08:35]} {[%emt 00:03:36]} c4 {[%clk 00:21:27]} {[%emt 00:01:15]} 27. b3
{[%clk 00:07:39]} {[%emt 00:01:26]} Nb6 {[%clk 00:20:36]} {[%emt 00:01:20]} 28.
Rb1 {[%clk 00:07:17]} {[%emt 00:00:51]} a6 {[%clk 00:19:38]} {[%emt 00:01:29]}
29. Ke2 {[%clk 00:06:56]} {[%emt 00:00:51]} Kd7 {[%clk 00:16:52]} {[%emt
00:03:16]} 30. Kd2 {[%clk 00:06:50]} {[%emt 00:00:36]} Kc6 {[%clk 00:17:01]}
{[%emt 00:00:21]} 31. b4 {[%clk 00:05:42]} {[%emt 00:01:39]} Kd7 {[%clk
00:16:42]} {[%emt 00:00:48]} 32. Rh1 {[%clk 00:03:18]} {[%emt 00:02:55]} Ke7
{[%clk 00:16:50]} {[%emt 00:00:22]} 33. a3 {[%clk 00:03:04]} {[%emt 00:00:44]}
Kf8 {[%clk 00:14:37]} {[%emt 00:02:43]} 34. Rc1 {[%clk 00:03:07]} {[%emt
00:00:27]} Kg7 {[%clk 00:14:46]} {[%emt 00:00:21]} 35. f3 {[%clk 00:03:30]}
{[%emt 00:00:08]} Kh6 {[%clk 00:14:48]} {[%emt 00:00:28]} 36. Ke3 {[%clk
00:02:52]} {[%emt 00:01:08]} Ra8 {[%clk 00:14:18]} {[%emt 00:00:59]} 37. Nh3
{[%clk 00:02:47]} {[%emt 00:00:36]} a5 {[%clk 00:13:51]} {[%emt 00:00:56]} 38.
Ng5 {[%clk 00:03:13]} {[%emt 00:00:04]} axb4 {[%clk 00:12:50]} {[%emt
00:01:32]} 39. axb4 {[%clk 00:03:37]} {[%emt 00:00:06]} Kg6 {[%clk 00:11:24]}
{[%emt 00:01:56]} 40. g4 {[%clk 00:04:03]} {[%emt 00:00:05]} hxg4 {[%clk
00:07:12]} {[%emt 00:04:41]} 41. fxg4 {[%clk 00:04:31]} {[%emt 00:00:02]} fxg4
{[%clk 00:07:37]} {[%emt 00:00:05]} 42. Rf1 {[%clk 00:04:27]} {[%emt 00:00:34]}
Ra2 {[%clk 00:06:19]} {[%emt 00:01:48]} 43. Rxf7 {[%clk 00:03:13]} {[%emt
00:01:44]} g3 {[%clk 00:04:28]} {[%emt 00:02:20]} 44. Rf6+ {[%clk 00:02:57]}
{[%emt 00:00:46]} Kh5 {[%clk 00:04:41]} {[%emt 00:00:18]} 45. Nxe6 {[%clk
00:03:07]} {[%emt 00:00:20]} Na4 {[%clk 00:04:14]} {[%emt 00:00:57]} 46. Kf3
{[%clk 00:01:27]} {[%emt 00:02:10]} Rf2+ {[%clk 00:00:53]} {[%emt 00:03:51]} 47.
Kxg3 {[%clk 00:01:55]} {[%emt 00:00:01]} Rxf6 {[%clk 00:01:10]} {[%emt
00:00:14]} 48. exf6 {[%clk 00:02:23]} {[%emt 00:00:01]} Kg6 {[%clk 00:01:33]}
{[%emt 00:00:07]} 49. Nf4+ {[%clk 00:02:44]} {[%emt 00:00:09]} Kxf6 {[%clk
00:01:18]} {[%emt 00:00:46]} 50. Nxd5+ {[%clk 00:03:13]} {[%emt 00:00:01]} Kf5
{[%clk 00:01:34]} {[%emt 00:00:14]} 51. Kf3 {[%clk 00:03:11]} {[%emt 00:00:31]}
Kg6 {[%clk 00:01:17]} {[%emt 00:00:48]} 52. Kg4 {[%clk 00:03:03]} {[%emt
00:00:38]} Kh6 {[%clk 00:01:38]} {[%emt 00:00:09]} 53. h5 {[%clk 00:03:03]}
{[%emt 00:00:30]} Kh7 {[%clk 00:02:02]} {[%emt 00:00:07]} 54. Kg5 {[%clk
00:03:14]} {[%emt 00:00:18]} Kg7 {[%clk 00:02:20]} {[%emt 00:00:11]} 55. h6+
{[%clk 00:02:39]} {[%emt 00:01:05]} Kh7 {[%clk 00:02:46]} {[%emt 00:00:04]} 56.
Kh5 {[%clk 00:02:57]} {[%emt 00:00:13]} Kg8 {[%clk 00:02:53]} {[%emt 00:00:22]}
57. Kg6 {[%clk 00:02:17]} {[%emt 00:01:10]} Kh8 {[%clk 00:03:20]} {[%emt
00:00:04]} 58. Kf6 {[%clk 00:01:49]} {[%emt 00:00:58]} Kh7 {[%clk 00:03:31]}
{[%emt 00:00:19]} 59. Ke6 {[%clk 00:02:16]} {[%emt 00:00:03]} Kxh6 {[%clk
00:03:58]} {[%emt 00:00:03]} 60. Kd6 {[%clk 00:02:42]} {[%emt 00:00:04]} Kg5
{[%clk 00:04:12]} {[%emt 00:00:15]} 61. Kc6 {[%clk 00:03:11]} Kf5 {[%clk
00:04:36]} {[%emt 00:00:07]} 62. Kxb5 {[%clk 00:03:37]} {[%emt 00:00:04]} Nb2
{[%clk 00:05:03]} {[%emt 00:00:03]} 63. Kc6 {[%clk 00:03:08]} {[%emt 00:00:59]}
1-0

[Event "20th Rochefort Chess Festival - Masters"]
[Site "Rochefort, France"]
[Date "2022.02.18"]
[Round "9.4"]
[White "Duboue, Peio"]
[Black "Martin Duque, Jesus"]
[Result "0-1"]
[TimeControl "1h30 + [30'']"]
[WhiteElo "2412"]
[BlackElo "2411"]

1. d4 {[%clk 01:30:58]} {[%emt 00:00:02]} Nf6 {[%clk 01:29:22]} {[%emt
00:01:21]} 2. g3 {[%clk 01:31:25]} {[%emt 00:00:19]} e6 {[%clk 01:26:21]}
{[%emt 00:03:31]} 3. Bg2 {[%clk 01:31:41]} {[%emt 00:00:14]} c5 {[%clk
01:26:18]} {[%emt 00:00:33]} 4. Nf3 {[%clk 01:32:05]} {[%emt 00:00:05]} cxd4
{[%clk 01:25:54]} {[%emt 00:00:54]} 5. O-O {[%clk 01:32:11]} {[%emt 00:00:24]}
d5 {[%clk 01:26:17]} {[%emt 00:00:08]} 6. Nxd4 {[%clk 01:32:19]} {[%emt
00:00:22]} e5 {[%clk 01:26:25]} {[%emt 00:00:22]} 7. Nb3 {[%clk 01:32:22]}
{[%emt 00:00:26]} Be6 {[%clk 01:26:11]} {[%emt 00:00:44]} 8. c4 {[%clk
01:29:16]} {[%emt 00:03:37]} Nc6 {[%clk 01:22:46]} {[%emt 00:03:54]} 9. cxd5
{[%clk 01:28:44]} {[%emt 00:01:02]} Nxd5 {[%clk 01:20:45]} {[%emt 00:02:31]} 10.
N1d2 {[%clk 01:25:46]} {[%emt 00:03:29]} Be7 {[%clk 01:07:05]} {[%emt
00:14:10]} 11. Ne4 {[%clk 01:26:03]} {[%emt 00:00:12]} Qb6 {[%clk 00:35:09]}
{[%emt 00:32:27]} 12. Ng5 {[%clk 01:16:13]} {[%emt 00:10:20]} Bxg5 {[%clk
00:35:27]} {[%emt 00:00:11]} 13. Bxg5 {[%clk 01:16:40]} {[%emt 00:00:03]} h6
{[%clk 00:34:17]} {[%emt 00:01:41]} 14. Bxd5 {[%clk 01:12:25]} {[%emt
00:04:45]} Bxd5 {[%clk 00:34:39]} {[%emt 00:00:07]} 15. Qxd5 {[%clk 01:07:43]}
{[%emt 00:05:12]} hxg5 {[%clk 00:35:08]} {[%emt 00:00:02]} 16. Rfd1 {[%clk
00:58:29]} {[%emt 00:09:43]} Rd8 {[%clk 00:35:09]} {[%emt 00:00:29]} 17. Qe4
{[%clk 00:53:05]} {[%emt 00:05:53]} O-O {[%clk 00:35:13]} {[%emt 00:00:26]} 18.
e3 {[%clk 00:53:08]} {[%emt 00:00:27]} a5 {[%clk 00:34:33]} {[%emt 00:01:10]}
19. Qc4 {[%clk 00:51:30]} {[%emt 00:02:08]} Rxd1+ {[%clk 00:20:45]} {[%emt
00:14:18]} 20. Rxd1 {[%clk 00:51:58]} {[%emt 00:00:02]} Rd8 {[%clk 00:20:41]}
{[%emt 00:00:34]} 21. Rxd8+ {[%clk 00:48:27]} {[%emt 00:04:01]} Qxd8 {[%clk
00:19:32]} {[%emt 00:01:39]} 22. Nc5 {[%clk 00:44:50]} {[%emt 00:04:08]} Qd1+
{[%clk 00:14:20]} {[%emt 00:05:42]} 23. Kg2 {[%clk 00:45:16]} {[%emt 00:00:04]}
g4 {[%clk 00:12:06]} {[%emt 00:02:43]} 24. Qe4 {[%clk 00:45:38]} {[%emt
00:00:08]} Nb4 {[%clk 00:10:04]} {[%emt 00:02:32]} 25. h3 {[%clk 00:30:10]}
{[%emt 00:15:58]} gxh3+ {[%clk 00:10:05]} {[%emt 00:00:29]} 26. Kxh3 {[%clk
00:30:22]} {[%emt 00:00:19]} b6 {[%clk 00:09:19]} {[%emt 00:01:15]} 27. a3
{[%clk 00:14:24]} {[%emt 00:16:29]} Qf1+ {[%clk 00:07:51]} {[%emt 00:01:57]} 28.
Kh4 {[%clk 00:14:53]} {[%emt 00:00:01]} bxc5 {[%clk 00:06:57]} {[%emt
00:01:24]} 29. axb4 {[%emt 00:00:01]} cxb4 {[%clk 00:06:03]} {[%emt 00:01:24]}
30. Qxe5 {[%clk 00:12:50]} {[%emt 00:03:02]} Qxf2 {[%clk 00:05:38]} {[%emt
00:00:55]} 31. Kh3 {[%clk 00:11:13]} {[%emt 00:02:07]} g6 {[%clk 00:05:38]}
{[%emt 00:00:30]} 32. e4 {[%clk 00:10:28]} {[%emt 00:01:15]} Kh7 {[%clk
00:04:46]} {[%emt 00:01:20]} 33. b3 {[%clk 00:06:06]} {[%emt 00:04:53]} Qf1+
{[%clk 00:04:56]} {[%emt 00:00:20]} 34. Kh2 {[%clk 00:06:28]} {[%emt 00:00:09]}
Qe2+ {[%clk 00:05:13]} {[%emt 00:00:13]} 35. Kg1 {[%clk 00:06:52]} {[%emt
00:00:06]} Qe3+ {[%clk 00:05:30]} {[%emt 00:00:13]} 36. Kh2 {[%clk 00:07:00]}
{[%emt 00:00:23]} Qxb3 {[%clk 00:05:43]} {[%emt 00:00:17]} 37. Qxa5 {[%clk
00:07:28]} {[%emt 00:00:02]} Qc2+ {[%clk 00:06:00]} {[%emt 00:00:11]} 0-1